Cogmind - Beta 13 @@@ ROGUE MODE // 2024.05.07 @ 22:38:48 Player: dwarfinator Result: Destroyed by EX-DEC with AWS/EX-DEC Performance ------------- Evolutions (0) 0 Regions Visited (3) 600 Robots Destroyed (30) 150 Value Destroyed (508) 508 Prototype IDs (1) 20 Alien Tech Used (0) 0 Bonus (0) 0 TOTAL SCORE: 1278 Bonus ------- None Cogmind --------- Core Integrity 0/250 Matter 220/300 Energy 100/100 System Corruption 7% Temperature Cool (31) Movement Rolling (130) Ox2 Location -10/Exiles Parts ------- > --- POWER (1) -------- (None) > --- PROPULSION (2) --- Light Treads Compact Wheel > --- UTILITY (2) ------ High-capacity Storage Unit > --- WEAPON (2) ------- Autogun Mini Grenade Launcher > --- INVENTORY (20) --- Wheel Medium Matter Pod (23) Machine Analyzer Visual Processing Unit Experimental Sensor Array Seismic Detector Autogun Datajack Heavy Hammer Peak State ------------ > --- POWER ------------ Ion Engine > --- PROPULSION ------- Light Treads Compact Wheel > --- UTILITY ---------- Small Storage Unit Experimental Sensor Array > --- WEAPON ----------- Autogun Autogun > --- INVENTORY -------- Wheel Structural Scanner Machine Analyzer Visual Processing Unit Light Armor Plating Mini Grenade Launcher Datajack Heavy Hammer [Rating: 18] Favorites ----------- Power Light Ion Engine Engine Light Ion Engine Propulsion Light Treads Treads Light Treads Wheel Wheel Utility Small Storage Unit Device Seismic Detector Storage Small Storage Unit Protection Light Armor Plating Weapon Autogun Energy Gun EM Pulse Gun Ballistic Gun Autogun Launcher Mini Grenade Launcher Build | -11 -10 -10 -10 ------- Run | Yrd Mat Min Exi Slots Evolved . | . . . . Power . | . . . . Propulsion . | . . . . Utility . | . . . . Weapon . | . . . . Parts Attached 35 | 15 14 4 2 Power 6 | 3 3 . . Engine 6 | 3 3 . . Core . | . . . . Reactor . | . . . . Propulsion 7 | 4 3 . . Treads 3 | 2 1 . . Leg . | . . . . Wheel 4 | 2 2 . . Hover . | . . . . Flight . | . . . . Utility 12 | 4 5 2 1 Device 4 | 1 2 1 . Storage 4 | 2 1 . 1 Processor . | . . . . Hackware . | . . . . Protection 4 | 1 2 1 . Artifact . | . . . . Weapon 10 | 4 3 2 1 Energy Gun 5 | 4 1 . . Energy Cannon . | . . . . Ballistic Gun 3 | . 2 1 . Ballistic Cannon . | . . . . Launcher 2 | . . 1 1 Special Weapon . | . . . . Impact Weapon . | . . . . Slashing Weapon . | . . . . Piercing Weapon . | . . . . Special Melee Weapon . | . . . . Unidentified Prototypes 1 | . . 1 . Parts Lost 11 | 8 1 . 2 Power 3 | 2 . . 1 Propulsion 2 | 2 . . . Utility 3 | 1 1 . 1 Weapon 3 | 3 . . . Highest Loss Streak 7 | 7 1 . 2 To Critical Strikes . | . . . . Average Slot Usage (%) 97 | . 95 100 99 Engine 14 | . 14 14 14 Treads 14 | . 14 14 14 Wheel 14 | . 14 14 14 Device 3 | . 7 . . Storage 14 | . 14 14 14 Protection 10 | . 6 13 13 Energy Gun 8 | . 18 . . Ballistic Gun 16 | . 5 23 28 Launcher 1 | . . 4 . Naked Turns . | . . . . Heaviest Build 54 | 12 19 19 54 Greatest Support 20 | 10 20 16 16 Greatest Overweight (x) 3 | 3 1 1 3 Average Overweight (x) . | . . 1 1 Largest Inventory Capacity 20 | 8 8 8 20 Average Capacity 8 | 7 8 8 14 Most Carried 9 | 5 8 8 9 Average Carried 5 | 3 7 7 8 Final Capacity 20 | 8 8 8 20 Final Carried 9 | 4 8 8 9 Class Distribution -------------------- 100% | Mutant Dominant Class ---------------- Mutant | -10/Materials Mutant | -10/Mines Mutant | -10/Exiles Resources | -11 -10 -10 -10 ----------- Run | Yrd Mat Min Exi Matter Collected 793 | 316 209 191 77 Remotely . | . . . . Salvage Created 953 | 112 547 196 98 Parts 69 | 4 30 13 22 Haulers Intercepted 1 | . 1 . . Recyclers Shooed 1 | 1 . . . Parts Field Recycled . | . . . . Retrieved Matter . | . . . . Parts Self-Destructed . | . . . . Prevented . | . . . . Kills | -11 -10 -10 -10 ------- Run | Yrd Mat Min Exi Combat Hostiles Destroyed 26 | 3 12 6 5 Guns 18 | 3 12 3 . AOE 8 | . . 3 5 Classes Destroyed 10 | 3 5 1 1 Worker 1 | . . 1 . Tunneler 3 | 1 1 1 . Hauler 1 | . 1 . . Recycler 2 | 1 1 . . Mechanic 1 | . 1 . . Watcher 1 | . 1 . . Swarmer 9 | . 6 3 . Grunt 9 | . 6 3 . Zionite 2 | . . . 2 Assembled 8 | 3 . . 5 Best Kill Streak 6 | 3 4 3 6 Combat Bots Only 5 | 3 4 3 5 Max Kills in Single Turn 5 | 1 1 3 5 Gunslinging . | . . . . Exploded 5 | . . 3 5 Melee . | . . . . Uniques/NPCs Destroyed 1 | . . . 1 EX-HEX (-10/Exiles) Combat | -11 -10 -10 -10 -------- Run | Yrd Mat Min Exi Hostile Shots Fired 187 | 72 73 24 18 Missed 46 | 20 15 9 2 Damage Taken 1711 | 704 537 210 260 Core 261 | 114 88 13 46 Absorbed by Shields . | . . . . Core Remaining (%) 54 | 54 . . . Volleys Fired 100 | 26 45 21 8 Largest 2 | 2 2 2 2 Hottest 80 | 80 80 46 53 Shots Fired 182 | 35 89 41 17 Gun 179 | 35 89 40 15 Cannon . | . . . . Launcher 3 | . . 1 2 Special . | . . . . Kinetic 69 | . 14 40 15 Thermal 93 | 18 75 . . Explosive 3 | . . 1 2 Electromagnetic 17 | 17 . . . Robot Hit Streak 8 | 3 8 6 4 Robot Miss Streak 6 | 6 5 2 2 Penetration Max . | . . . . Secondary Targets 4 | . 3 1 . Max Gunslinging Chain 1 | . 1 1 . Shots Hit Robots 103 | 14 54 25 10 Core Hits 58 | 8 26 11 13 Critical Kills . | . . . . Critical Parts Destroyed 1 | . . . 1 Critical Strikes 1 | . . . 1 Destroy 1 | . . . 1 Melee Attacks . | . . . . Impact . | . . . . Slashing . | . . . . Piercing . | . . . . Sneak Attacks . | . . . . Combat Hostiles . | . . . . Follow-up Attacks . | . . . . Damage Inflicted 1947 | 163 715 506 563 Guns 1379 | 163 712 370 134 Cannons . | . . . . Explosions 565 | . . 136 429 Melee . | . . . . Ramming 3 | . 3 . . Kinetic 564 | . 60 370 134 Thermal 772 | 120 652 . . Explosive 565 | . . 136 429 Electromagnetic 43 | 43 . . . Impact . | . . . . Slashing . | . . . . Piercing . | . . . . Highest Corruption 7 | 4 5 5 7 Average Corruption 4 | 4 4 5 5 Corruption Purged . | . . . . Corruption Blocked . | . . . . Effects 34 | 4 10 14 6 Message Errors 10 | 1 2 5 2 Matter Fused 8 | 2 . 3 3 Heat Flow Errors 2 | . 2 . . Energy Discharges 3 | . . 3 . Parts Rejected 1 | . 1 . . Data Loss (minor) 4 | . 1 3 . Data Loss (major) 2 | . 2 . . Misfires 1 | . . . 1 Alerts 2 | 1 1 . . Weapon Failures 1 | . 1 . . Overload Shots . | . . . . Overflow Damage 20 | . . . 20 Projectiles . | . . . . Explosions 20 | . . . 20 Melee . | . . . . Knockbacks . | . . . . Impact . | . . . . Kinetic . | . . . . Secondary . | . . . . Self-Inflicted Damage 15 | . . . 15 Shots 1 | . . . 1 Rammed 1 | . 1 . . Targets Rammed 1 | . 1 . . Kicked . | . . . . Crushed . | . . . . Highest Temperature 300 | 66 300 73 58 Average Temperature 74 | 51 114 31 23 Received Heat Transfer 421 | . 180 141 100 Siege Activations . | . . . . Robots Corrupted . | . . . . Combat Hostiles . | . . . . Parts Fried . | . . . . Impact Corruptions . | . . . . Robots Melted . | . . . . Combat Hostiles . | . . . . Parts Melted 8 | . 8 . . Heat Transferred 2125 | 275 1850 . . Parts Sabotaged . | . . . . Parts Stolen . | . . . . Parts Stripped . | . . . . Power Chain Reactions . | . . . . Alert | -11 -10 -10 -10 ------- Run | Yrd Mat Min Exi Peak Influence 328 | 10 328 226 . Initial 88 | . . 88 . Average 67 | 2 179 129 . Maximum Alert Level 1 | . 1 1 . Low Security (%) 86 | 100 59 79 . Level 1 13 | . 40 20 . Level 2 . | . . . . Level 3 . | . . . . Level 4 . | . . . . Level 5 . | . . . . High Security . | . . . . Max Security . | . . . . Squads Dispatched 2 | . 2 . . Investigation 2 | . 2 . . Extermination . | . . . . Reinforcement . | . . . . Assault . | . . . . Garrison . | . . . . Intercept . | . . . . Searches Triggered . | . . . . Construction Impeded . | . . . . Haulers Reinforced . | . . . . Active Scanning Responses . | . . . . Cargo Convoy Interrupts . | . . . . Stealth | -11 -10 -10 -10 --------- Run | Yrd Mat Min Exi Distress Signals 1 | . 1 . . Communications Jammed . | . . . . Distress Signals . | . . . . Times Spotted 41 | 6 18 4 13 Peak Tracking Total 15 | 4 4 2 15 Tactical Retreats 3 | 1 . 1 1 Traps | -11 -10 -10 -10 ------- Run | Yrd Mat Min Exi Traps Triggered . | . . . . Indirectly . | . . . . Trap Hack Attempts . | . . . . Triggered . | . . . . Disarmed . | . . . . Reprogrammed . | . . . . Reused . | . . . . Traps Extracted . | . . . . Installed . | . . . . Triggered . | . . . . Machines | -11 -10 -10 -10 ---------- Run | Yrd Mat Min Exi Machines Disabled 2 | . . . 2 Max in Single Turn 1 | . . . 1 Machines Repaired . | . . . . Machines Dismantled . | . . . . Machines Sabotaged . | . . . . Overloaded Fab Kills . | . . . . Hacking | -11 -10 -10 -10 --------- Run | Yrd Mat Min Exi Machines Accessed 6 | . 6 . . Terminals 4 | . 4 . . Fabricators . | . . . . Repair Stations 1 | . 1 . . Recycling Units 1 | . 1 . . Scanalyzers . | . . . . Garrison Access . | . . . . Total Hacks 13 | . 13 . . Successful 4 | . 4 . . Failed 9 | . 9 . . Catastrophic 2 | . 2 . . Database Lockouts . | . . . . Manual 9 | . 9 . . Terminals 11 | . 11 . . Fabricators . | . . . . Repair Stations 1 | . 1 . . Recycling Units 1 | . 1 . . Scanalyzers . | . . . . Garrison Access . | . . . . Terminal Hacks 2 | . 2 . . Part Schematic 1 | . 1 . . Hauler Manifests 1 | . 1 . . Fabricator Hacks . | . . . . Repair Station Hacks 1 | . 1 . . Refit 1 | . 1 . . Recycling Unit Hacks . | . . . . Scanalyzer . | . . . . Garrison Access Hacks . | . . . . Unauthorized Hacks 1 | . 1 . . Terminals . | . . . . Fabricators . | . . . . Repair Stations . | . . . . Recycling Units 1 | . 1 . . Tunnel 1 | . 1 . . Scanalyzers . | . . . . Garrison Access . | . . . . Data Cores Recovered . | . . . . Used . | . . . . Hacking Detections 5 | . 5 . . Full Trace Events 2 | . 2 . . Feedback Events 1 | . 1 . . Corruption 1 | . 1 . . Feedback Blocked . | . . . . Robot Schematics Acquired . | . . . . Robots Built . | . . . . Authchips . | . . . . Time . | . . . . Total Robot Build Rating . | . . . . Part Schematics Acquired 1 | . 1 . . Parts Built . | . . . . Authchips . | . . . . Time . | . . . . Total Part Build Rating . | . . . . Parts Repaired . | . . . . Time . | . . . . Parts Recycled . | . . . . Recycled Matter . | . . . . Retrieved Matter . | . . . . Retrieved Components . | . . . . Parts Scanalyzed . | . . . . Part Schematics Acquired . | . . . . Parts Damaged . | . . . . Bothacking | -11 -10 -10 -10 ------------ Run | Yrd Mat Min Exi Used RIF Installer . | . . . . Robots Hacked . | . . . . Non-combat . | . . . . Combat . | . . . . Robot Hacks Applied . | . . . . Relay Couplers Released . | . . . . Fabnet Peak Effective % . | . . . . Robots Rewired . | . . . . Allies Hacked . | . . . . Hacks Repelled . | . . . . Allies | -11 -10 -10 -10 -------- Run | Yrd Mat Min Exi Total Allies . | . . . . Largest Group . | . . . . Highest-Rated Group . | . . . . Highest-Rated Ally . | . . . . Total Orders . | . . . . Ally Attacks . | . . . . Total Damage . | . . . . Kills . | . . . . Allies Corrupted . | . . . . Allies Melted . | . . . . Intel | -11 -10 -10 -10 ------- Run | Yrd Mat Min Exi Robot Analysis Total . | . . . . Derelict Logs Recovered . | . . . . Drone Launches . | . . . . Drone Recoveries . | . . . . Exploration | -11 -10 -10 -10 ------------- Run | Yrd Mat Min Exi Turns Passed 2765 | 1467 577 501 220 Spaces Moved 1116 | 257 366 340 153 Core 153 | 153 . . . Treads 20 | . 20 . . Legs . | . . . . Wheels 943 | 104 346 340 153 Hover . | . . . . Flight . | . . . . Fastest Speed 50 | 50 80 115 115 Average Speed 107 | 92 102 115 126 Slowest Speed 200 | 200 160 115 145 Overloaded Moves . | . . . . Propulsion Burnouts . | . . . . Robots Hopped . | . . . . Cave-ins Triggered . | . . . . Exploration Rate (%) 49 | 35 47 64 52 Regions Visited 3 Branch Regions 2 Pre-discovered Areas 1 | . 1 . . Known Exits Taken . | . . . . Unknown Exits Taken 3 | 1 1 1 . Scrap Searched 1 | . . 1 . Spaces Dug . | . . . . Terrain Destroyed 16 | . . 8 8 Melee . | . . . . Projectile . | . . . . AOE 16 | . . 8 8 Terrain Rammed . | . . . . Walls Destroyed . | . . . . Machines Disabled . | . . . . Actions | -11 -10 -10 -10 --------- Run | Yrd Mat Min Exi Total 2511 | 1446 482 416 167 Wait 1215 | 1138 27 48 2 Move 1113 | 256 365 339 153 Hop . | . . . . Pick Up 24 | 8 13 2 1 Fast Attach 16 | 11 5 . . Attach 5 | 4 1 . . Detach 1 | 1 . . . Swap 14 | . 8 4 2 Drop 22 | 2 17 2 1 Fire 100 | 26 45 21 8 Melee . | . . . . Ram . | . . . . Kick . | . . . . Crush 1 | . 1 . . Escape Stasis . | . . . . Rewire . | . . . . Trap . | . . . . Miscellaneous . | . . . . Route ------- -11/Scrapyard -10/Materials (discovered 2 exits: [*Mat] / [*Min]) -10/Mines (discovered 2 exits: [*Mat] / [*Exi]) -10/Exiles (discovered 1 exit: [*Min]) History --------- Turn | Location | Event 8 | -11/Scrapyard | Discovered new exit (range 16) 1285 | -11/Scrapyard | Assembled infested the area 1435 | -11/Scrapyard | Lost 7 parts (2p1n1u3w) 1468 | -11/Scrapyard | Entered Materials 1484 | -10/Materials | Build established: Mutant 1534 | -10/Materials | Core integrity fell below 50% 1758 | -10/Materials | Discovered new exit (range 12) 1875 | -10/Materials | Discovered new exit (range 3) 1997 | -10/Materials | Core integrity fell below 20% 2045 | -10/Materials | Entered Mines 2065 | -10/Mines | Found a damaged Exp. Sensor Array with a note attached 2068 | -10/Mines | Found Prototype Device 2069 | -10/Mines | Identified Exp. Sensor Array 2297 | -10/Mines | Discovered new exit (range 5) 2541 | -10/Mines | Deemed a non-threat by the Exiles lab entrance 2542 | -10/Mines | Discovered new exit (range 5) 2546 | -10/Mines | Entered Exiles 2564 | -10/Exiles | Discovered new exit (range 15) 2575 | -10/Exiles | Met 8R-AWN 2595 | -10/Exiles | Met EX-HEX 2690 | -10/Exiles | Met EX-DEC 2730 | -10/Exiles | Attacked by the Exiles 2765 | -10/Exiles | Destroyed EX-HEX 2766 | -10/Exiles | Destroyed by EX-DEC with AWS/EX-DEC Last Messages --------------- 02730_ System corrupted: Autogun misfires. 02730_ EXILES: Hostile robot within lab perimeter. Defensive protocols time, folks! 02730_ J5-HVA destroyed. 02738_ DK-RAY destroyed. 02755_ Machine disabled. 02757_ Lgt. Armor Plating destroyed. 02758_ as-64390 suffers critical hit (Destroy). 02758_ Destroyed Asb. F-torch. 02762_ as-90018 destroyed. 02762_ as-75379 destroyed. 02762_ as-62714 destroyed. 02762_ as-64390 destroyed. 02762_ Machine disabled. 02762_ as-47626 destroyed. 02762_ as-65809 destroyed. 02764_ EX-BIN: "I just want to science!" 02765_ Ion Engine destroyed. 02765_ EX-HEX destroyed. 02765_ Destroyed Asb. Hover Unit. Map ----- +----------------------------------------------------+ | ???????????????????#" """"##??# #???? | | ???????????????????#""" """#??## ####? | | ???????????????????## ""##??#! "!#? | | ????????????????????#"" """##???#" #? | | ????????????????????##""" ##????#" "#? | | ?????????????????????##"""" ##?????#!!""!"#? | | ??????????????????????### #??????########? | | ????????????????????????##### ##??????????????? | | ????????????????????????????## #???????????????? | | ?????????????????????????????# #???????????????? | | ?????????????????????????????# #???????????????? | | ?????????????????????????????# #???????????????? | | ?????????????????????????????# #???????????????? | | ????????????????????""???????# #???????????????? | | ???????????????????"""""?????# #???????????????? | | ???????????????????" """"???# ##??????????????? | | ???????????????????"" """???# #??????????????? | | ???????????????????"" ""#?# ! #??????????????? | | ????????????????#####"""# ## ####???????????? | | ??????????????""""""" " c%!%"""""""#????????? | | ?????????? """"""" a * "#????????? | | ?????????? c " ??????? | | ????????? z % " ??????? | | ????????? z % = " ??????? | | ????????? %% !%= #"???????? | | ???????????? " """"" "@ " """""#????????? | | ????????????????""###"""#### ###"""######????????? | | ???????????????????"" ???????? ""????????????? | | ??????????????????#""" ???????? """????????????? | | ??????????????????#" "????????"""""????????????? | | ??????????????????#""""????????? """?????????????? | | ???????????????????""""??????????????????????????? | | ????????????????????#????????????????????????????? | | ?????????????????????????????????????????????????? | | ?????????????????????????????????????????????????? | | ?????????????????????????????????????????????????? | | ?????????????????????????????????????????????????? | | | | | | | | | | | | | | | | | | | | | | | | | | | +----------------------------------------------------+ Best States ------------- Heat Dissipation 35 Energy Generation 10 Energy Capacity 250 Matter Stores 300 Matter Capacity 300 Sight Range 16 Robot Scan Range 20 Terrain Scan Density 10 Armor Coverage 150 Evasion (%) 50 Recoil Reduction 1 Item Schematics ----------------- Hcp. Storage Unit | -10/Materials | Hacked Robot Schematics ------------------ None Fabricated ------------ Nothing Alien Tech Used ----------------- None Achievements -------------- Curiosity Killed The Cat Challenges ------------ None Game ------ Seed AuthchipMediumDriver Manual? 0 Play Time 00:41:17 Cumulative 66.7 hours Start 2024.05.07 @ 21:53:47 End 2024.05.07 @ 22:38:48 Sessions 1 Manual Loads 0 Difficulty Rogue Special Mode None Game No. 12 Rogue 9 Adventurer 3 Explorer 0 Win Type - Total 2 Types 2/0/0/0/0/0/0/0/0 Lore% 35 Gallery% 61 Achievement% 53 Wizard Run 0 Options --------- Layout 0 ASCII 0 Keyboard 0 Movement Numpad Keybinds 0 Fullscreen 1 Font 18/SmallcapsGlow Map View 76x50 Zoom Use 0% Tactical HUD 1 Map Filters NONE Filters NONE Steam 1 RUN: 01d6db2c-3883-4378-b840-b731992d2e12